fUST/lending_fUST_20250621
["ID","MTS","AMOUNT","RATE_DAILY","PERIOD"]
[366819244,1750474244810,-40813.32747224,0.000239,2]
[366819246,1750474244822,-3516.50709834,0.000239,2]
[366819248,1750474244834,-7706.86271772,0.000239,2]
[366819441,1750474246744,-20336.36457193,0.000239,2]
[366821612,1750474452852,-2000.0,0.00024999,30]
[366821613,1750474452880,-2000.0,0.00024999,30]
[366821614,1750474452906,-2000.0,0.00024999,30]
[366821615,1750474452932,-2000.0,0.00024999,30]
[366821616,1750474452957,-2000.0,0.00024999,30]
[366821617,1750474452982,-2000.0,0.00024999,30]
[366821618,1750474453006,-2000.0,0.00024999,30]
[366821619,1750474453030,-2000.0,0.00024999,30]
[366821620,1750474453054,-2000.0,0.00024999,30]
[366821621,1750474453078,-2000.0,0.00024999,30]
[366821622,1750474453104,-2000.0,0.00024999,30]
[366821623,1750474453128,-332.02895993,0.00024999,30]
[366821624,1750474453151,-1489.02216245,0.00024999,30]
[366821625,1750474453178,-1007.51566073,0.00024999,32]
[366821626,1750474453201,-1837.92705301,0.00024999,30]
[366821627,1750474453225,-650.54545979,0.00024999,30]
[366821628,1750474453248,-1505.68878249,0.00024999,30]
[366821629,1750474453271,-2270.0,0.00024999,30]
[366821630,1750474453296,-100000.0,0.00024999,30]
[366821631,1750474453320,-100000.0,0.00024999,30]
[366821632,1750474453347,-100000.0,0.00024999,30]
[366821633,1750474453372,-6633.58005293,0.00024999,35]
[366821634,1750474453397,-1000000.0,0.00024999,30]
[366821635,1750474453421,-990247.149959,0.00024999,30]
[366821636,1750474453448,-20000.35564432,0.00024999,30]
[366821637,1750474453472,-2000.0,0.00024999,30]
[366821638,1750474453496,-1000.0,0.00024999,30]
[366821639,1750474453520,-1000.0,0.00024999,30]
[366821640,1750474453545,-1317.4144157,0.00024999,35]
[366821641,1750474453572,-1000.57,0.00024999,30]
[366821642,1750474453597,-2000.0,0.00024999,30]
[366821643,1750474453622,-2000.0,0.00024999,30]
[366821644,1750474453647,-2000.0,0.00024999,30]
[366821645,1750474453672,-516.199999,0.00024999,30]
[366821646,1750474453696,-516.199999,0.00024999,30]
[366821647,1750474453720,-516.199999,0.00024999,30]
[366821648,1750474453745,-500.0,0.00024999,30]
[366821649,1750474453770,-500.0,0.00024999,30]
[366821650,1750474453931,-500.0,0.00024999,30]
[366821651,1750474453959,-500.0,0.00024999,30]
[366821652,1750474453984,-500.0,0.00024999,30]
[366821653,1750474454010,-500.0,0.00024999,30]
[366821654,1750474454035,-500.0,0.00024999,30]
[366821655,1750474454059,-500.0,0.00024999,30]
[366821656,1750474454087,-500.0,0.00024999,30]
[366821657,1750474454112,-500.0,0.00024999,30]
[366821658,1750474454139,-500.0,0.00024999,30]
[366821659,1750474454163,-500.0,0.00024999,30]
[366821660,1750474454186,-500.0,0.00024999,30]
[366821661,1750474454211,-500.0,0.00024999,30]
[366821662,1750474454235,-500.0,0.00024999,30]
[366821663,1750474454264,-500.0,0.00024999,30]
[366821664,1750474454288,-500.0,0.00024999,30]
[366821665,1750474454312,-500.0,0.00024999,30]
[366821666,1750474454337,-500.0,0.00024999,30]
[366821667,1750474454361,-500.0,0.00024999,30]
[366821668,1750474454386,-500.0,0.00024999,30]
[366821669,1750474454411,-500.0,0.00024999,30]
[366821670,1750474454436,-481.1945818,0.00024999,30]
[366821673,1750475211572,163.876811,0.00013699,2]
[366821676,1750475390837,150.0,0.000189,2]
[366821707,1750475432003,-535.94791132,0.00021034,2]
[366821714,1750475432212,-20.08421728,0.00021034,2]
[366821715,1750475432222,-168.0,0.0002162,2]
[366821716,1750475432233,-160.0,0.00021891,2]
[366821717,1750475432243,-300.0,0.00021899,2]
[366821718,1750475432254,-300.0,0.00021899,2]
[366821719,1750475432266,-908.99205272,0.00021899,2]
[366821777,1750475438056,-291.00794728,0.00021899,2]
[366821779,1750475438066,-3000.0,0.000219,2]
[366821781,1750475438076,-3594.0,0.000219,2]
[366821783,1750475438086,-3000.0,0.0002191,2]
[366821785,1750475438096,-169.56697782,0.00021919,2]
[366821787,1750475438106,-200.58115258,0.00021919,2]
[366821789,1750475438115,-276.04809011,0.00021919,2]
[366821791,1750475438126,-3000.0,0.0002192,2]
[366821793,1750475438136,-3000.0,0.0002193,2]
[366821795,1750475438145,-580.33256488,0.00021937,2]
[366821797,1750475438155,-460.0,0.00021937,2]
[366821799,1750475438165,-460.0,0.00021937,2]
[366821801,1750475438174,-564.8842357,0.00021937,2]
[366821804,1750475438183,-460.0,0.00021937,2]
[366821807,1750475438193,-460.0,0.00021937,2]
[366821810,1750475438203,-460.0,0.00021937,2]
[366821813,1750475438213,-486.96810148,0.00021937,2]
[366821816,1750475438222,-546.09589819,0.00021937,2]
[366821819,1750475438231,-507.96799129,0.00021937,2]
[366821822,1750475438241,-460.0,0.00021937,2]
[366821825,1750475438250,-488.99285256,0.00021938,2]
[366821827,1750475438259,-511.90852494,0.00021938,2]
[366821829,1750475438270,-523.15719912,0.00021938,2]
[366821831,1750475438280,-507.8542476,0.00021938,2]
[366821833,1750475438289,-324.02169595,0.00021939,2]
[366821835,1750475438299,-460.0,0.00021939,2]
[366821837,1750475438309,-517.21077304,0.00021939,2]
[366821839,1750475438318,-492.79770349,0.00021939,2]
[366821841,1750475438328,-499.43643572,0.00021939,2]
[366821843,1750475438338,-422.76814696,0.00021939,2]
[366821845,1750475438347,-460.0,0.00021939,2]
[366821847,1750475438356,-460.0,0.00021939,2]
[366821849,1750475438366,-460.0,0.00021939,2]
[366821851,1750475438375,-602.94609181,0.00021939,2]
[366821853,1750475438385,-508.8269544,0.00021939,2]
[366821855,1750475438395,-534.40608384,0.00021939,2]
[366821857,1750475438405,-460.0,0.00021939,2]
[366821859,1750475438415,-517.16077935,0.00021939,2]
[366821861,1750475438425,-3000.0,0.0002194,2]
[366821863,1750475438438,-529.05771953,0.00021942,2]
[366821865,1750475438447,-3000.0,0.0002195,2]
[366821867,1750475438457,-3000.0,0.0002196,2]
[366821869,1750475438467,-3000.0,0.0002197,2]
[366821871,1750475438477,-3000.0,0.0002198,2]
[366821873,1750475438487,-3000.0,0.0002199,2]
[366821875,1750475438496,-3000.0,0.00022,2]
[366821877,1750475438506,-168.0,0.00022,2]
[366821879,1750475438517,-166.0,0.00022,2]
[366821881,1750475438527,-3000.0,0.0002201,2]
[366821883,1750475438537,-3000.0,0.0002202,2]
[366821885,1750475438547,-3000.0,0.0002203,2]
[366821887,1750475438556,-3000.0,0.0002204,2]
[366821888,1750475438566,-3000.0,0.0002205,2]
[366821890,1750475438575,-3000.0,0.0002206,2]
[366821893,1750475438585,-3000.0,0.0002207,2]
[366821895,1750475438597,-3000.0,0.0002208,2]
[366821897,1750475438606,-3000.0,0.0002209,2]
[366821899,1750475438615,-3000.0,0.000221,2]
[366821901,1750475438625,-3000.0,0.0002211,2]
[366821903,1750475438636,-3000.0,0.0002212,2]
[366821905,1750475438646,-3000.0,0.0002213,2]
[366821907,1750475438656,-3000.0,0.0002214,2]
[366821909,1750475438666,-3000.0,0.0002215,2]
[366821911,1750475438676,-3000.0,0.0002216,2]
[366821913,1750475438686,-500.0,0.0002216,2]
[366821915,1750475438696,-315.09636162,0.0002216,2]
[366821917,1750475438705,-504.91035382,0.0002216,2]
[366821919,1750475438714,-500.607487,0.0002216,2]
[366821921,1750475438723,-503.92653134,0.0002216,2]
[366821923,1750475438733,-500.0,0.0002216,2]
[366821925,1750475438743,-3000.0,0.0002217,2]
[366821927,1750475438754,-3000.0,0.0002218,2]
[366821929,1750475438763,-168.0,0.00022185,2]
[366821931,1750475438773,-514.60943347,0.00022187,2]
[366821933,1750475438783,-505.39640988,0.00022189,2]
[366821935,1750475438792,-5186.050067,0.0002219,2]
[366821937,1750475438802,-530.51303626,0.00022196,2]
[366821939,1750475438811,-207.4,0.00022196,2]
[366821941,1750475438820,-460.0,0.00022211,2]
[366821943,1750475438830,-460.0,0.00022211,2]
[366821945,1750475438839,-460.0,0.00022211,2]
[366821946,1750475438849,-460.0,0.00022211,2]
[366821948,1750475438859,-460.0,0.00022211,2]
[366821950,1750475438868,-460.0,0.00022213,2]
[366821952,1750475438879,-400.0,0.00022213,2]
[366821954,1750475438888,-460.0,0.00022213,2]
[366821956,1750475438899,-502.38615315,0.00022237,2]
[366821958,1750475438908,-501.23785456,0.00022237,2]
[366821961,1750475438919,-256.63666679,0.00022237,2]
[366821963,1750475438928,-154.24575744,0.00022237,2]
[366821965,1750475438938,-501.90290909,0.00022237,2]
[366821967,1750475438948,-506.27587213,0.00022237,2]
[366821969,1750475438958,-500.94782065,0.00022267,2]
[366821970,1750475438968,-500.0,0.00022267,2]
[366821972,1750475438977,-500.0,0.00022282,2]
[366821975,1750475438987,-500.0,0.00022282,2]
[366821977,1750475438998,-500.0,0.00022282,2]
[366821979,1750475439008,-514.47048121,0.00022317,2]
[366821980,1750475439017,-500.0,0.00022317,2]
[366821982,1750475439027,-500.0,0.00022317,2]
[366821984,1750475439037,-318.31523256,0.00022317,2]
[366821986,1750475439047,-501.33909667,0.00022317,2]
[366821988,1750475439057,-502.33070302,0.00022321,2]
[366821990,1750475439066,-500.0,0.00022321,2]
[366821992,1750475439076,-266.73998914,0.00022321,2]
[366821995,1750475439086,-500.51038034,0.00022321,2]
[366822012,1750475439262,-500.0,0.00022321,2]
[366822013,1750475439273,-501.02823414,0.00022321,2]
[366822014,1750475439284,-502.51764797,0.00022321,2]
[366822015,1750475439294,-500.0,0.00022321,2]
[366822016,1750475439304,-501.28333131,0.00022321,2]
[366822017,1750475439314,-498.58365252,0.00022375,2]
[366822018,1750475439323,-160.0,0.00022458,2]
[366822019,1750475439333,-424.93363889,0.00022458,2]
[366822020,1750475439343,-836.41202323,0.0002246,2]
[366822021,1750475439353,-160.0,0.0002246,2]
[366822022,1750475439363,-160.0,0.00022462,2]
[366822023,1750475439373,-460.0,0.00022485,2]
[366822024,1750475439383,-460.0,0.00022485,2]
[366822025,1750475439392,-545.145444,0.00022485,2]
[366822026,1750475439403,-460.0,0.00022485,2]
[366822027,1750475439413,-460.0,0.00022485,2]
[366822029,1750475439422,-460.0,0.00022487,2]
[366822030,1750475439434,-460.0,0.00022487,2]
[366822031,1750475439446,-150.0,0.00022492,2]
[366822032,1750475439457,-150.0,0.00022492,2]
[366822033,1750475439467,-406.0,0.00022492,2]
[366822034,1750475439478,-1256.09,0.000225,7]
[366822035,1750475439488,-230.10342898,0.00022589,2]
[366822036,1750475439498,-168.0,0.00022636,2]
[366822037,1750475439509,-214.04485122,0.0002266,2]
[366822038,1750475439521,-1000.0,0.00022708,2]
[366822039,1750475439532,-460.0,0.00022759,2]
[366822040,1750475439541,-460.0,0.00022761,2]
[366822041,1750475439551,-460.0,0.00022761,2]
[366822042,1750475439561,-445.94,0.000228,2]
[366822043,1750475439570,-464.10445723,0.00022815,2]
[366822045,1750475439580,-508.37120116,0.0002283,2]
[366822047,1750475439591,-505.5347495,0.0002283,2]
[366822049,1750475439600,-503.05116636,0.00022865,2]
[366822051,1750475439611,-503.46765299,0.00022865,2]
[366822053,1750475439621,-1008.46987052,0.00022869,2]
[366822054,1750475439631,-511.91922401,0.00022869,2]
[366822056,1750475439641,-1921.75171222,0.000229,8]
[366822059,1750475439651,-214.04485122,0.0002297,2]
[366822061,1750475439662,-1921.75171205,0.00023003,8]
[366822063,1750475439671,-460.0,0.00023033,2]
[366822064,1750475439681,-460.0,0.00023035,2]
[366822066,1750475439690,-460.0,0.00023035,2]
[366822068,1750475439701,-365.7551581,0.00023096,2]
[366822070,1750475439711,-365.7551581,0.00023096,2]
[366822072,1750475439720,-365.7551581,0.00023096,2]
[366822075,1750475439731,-365.7551581,0.00023096,2]
[366822077,1750475439742,-365.7551581,0.00023096,2]
[366822079,1750475439752,-730.5430947,0.00023096,2]
[366822081,1750475439761,-365.6169836,0.00023096,2]
[366822083,1750475439772,-365.7551581,0.00023096,2]
[366822085,1750475439782,-365.7551581,0.00023096,2]
[366822087,1750475439791,-365.7551581,0.00023096,2]
[366822089,1750475439801,-365.7551581,0.00023096,2]
[366822091,1750475439811,-365.7551581,0.00023096,2]
[366822093,1750475439821,-715.7710543,0.00023096,2]
[366822095,1750475439831,-1921.75171205,0.00023107,8]
[366822097,1750475439841,-1921.75171205,0.0002321,8]
[366822098,1750475439850,-270.402908,0.00023216,7]
[366822100,1750475439860,-1500.0,0.00023256,2]
[366822102,1750475439870,-214.04485122,0.0002328,2]
[366822104,1750475439880,-460.0,0.00023307,2]
[366822107,1750475439891,-460.0,0.00023309,2]
[366822109,1750475439900,-460.0,0.00023309,2]
[366822111,1750475439910,-1921.75171205,0.00023314,9]
[366822113,1750475439920,-500.0,0.00023406,2]
[366822115,1750475439930,-1921.75171205,0.00023417,9]
[366822117,1750475439939,-500.0,0.00023485,2]
[366822118,1750475439949,-749.965512,0.0002352,4]
[366822120,1750475439959,-1921.75171205,0.00023521,9]
[366822122,1750475439969,-215.0738,0.00023565,2]
[366822124,1750475439979,-460.0,0.00023581,2]
[366822126,1750475439988,-460.0,0.00023583,2]
[366822128,1750475439999,-460.0,0.00023583,2]
[366822129,1750475440008,-501.8160154,0.0002359,2]
[366822131,1750475440018,-214.04485122,0.0002359,2]
[366822133,1750475440029,-1921.75171205,0.00023624,9]
[366822135,1750475440039,-1921.75171205,0.00023728,9]
[366822138,1750475440049,-293.85068442,0.00023746,2]
[366822140,1750475440059,-160.0,0.00023759,2]
[366822142,1750475440069,-420.0,0.00023799,2]
[366822143,1750475440078,-1256.09,0.000238,7]
[366822145,1750475440087,-1029.03893992,0.00023804,2]
[366822147,1750475440097,-394.86745861,0.00023809,2]
[366822149,1750475440107,-1921.75171205,0.00023831,10]
[366822151,1750475440117,-460.0,0.00023855,2]
[366822153,1750475440126,-460.0,0.00023857,2]
[366822155,1750475440136,-460.0,0.00023857,2]
[366822157,1750475440145,-4983.45,0.00023882,2]
[366822159,1750475440155,-153.0,0.00023887,2]
[366822161,1750475440165,-153.0,0.00023887,2]
[366822163,1750475440174,-153.0,0.00023887,2]
[366822165,1750475440184,-153.0,0.00023887,2]
[366822167,1750475440193,-153.0,0.00023887,2]
[366822169,1750475440202,-153.0,0.00023889,2]
[366822171,1750475440212,-153.0,0.00023889,2]
[366822173,1750475440221,-153.0,0.00023889,2]
[366822175,1750475440233,-153.0,0.00023889,2]
[366822177,1750475440243,-153.0,0.00023889,2]
[366822179,1750475440252,-153.0,0.00023889,2]
[366822181,1750475440262,-153.0,0.00023891,2]
[366822183,1750475440272,-153.0,0.00023891,2]
[366822185,1750475440281,-153.0,0.00023891,2]
[366822187,1750475440291,-153.0,0.00023891,2]
[366822189,1750475440301,-153.0,0.00023891,2]
[366822191,1750475440310,-153.0,0.00023893,2]
[366822193,1750475440320,-153.0,0.00023893,2]
[366822195,1750475440329,-153.0,0.00023893,2]
[366822198,1750475440350,-153.0,0.00023893,2]
[366822200,1750475440362,-153.0,0.00023893,2]
[366822202,1750475440372,-153.0,0.00023893,2]
[366822204,1750475440382,-971.61127094,0.00023896,2]
[366822206,1750475440392,-155.74044168,0.00023899,2]
[366822209,1750475440403,-9554.38624318,0.000239,2]
[366822211,1750475440413,-209.35,0.000239,4]
[366822213,1750475440423,-162.83339141,0.000239,4]
[366822215,1750475440435,-162.83339141,0.000239,4]
[366822217,1750475440445,-162.83,0.000239,4]
[366822219,1750475440458,-151.0,0.000239,7]
[366822221,1750475440468,-214.04485122,0.000239,2]
[366822223,1750475440478,-640.0,0.000239,2]
[366822225,1750475440488,-500.0,0.00023927,2]
[366822227,1750475440498,-1921.75171205,0.00023934,10]
[366822229,1750475440509,-500.0,0.00023953,2]
[366822231,1750475440519,-400.14235462,0.00023973,2]
[366822233,1750475440529,-500.0,0.00023973,2]
[366822235,1750475440539,-500.0,0.00023973,2]
[366822237,1750475440549,-500.0,0.00023973,2]
[366822239,1750475440560,-500.0,0.00023973,2]
[366822241,1750475440570,-500.0,0.00023973,2]
[366822243,1750475440580,-500.0,0.00023973,2]
[366822245,1750475440590,-268.65876723,0.00023973,2]
[366822247,1750475440600,-500.0,0.00023973,2]
[366822249,1750475440609,-500.0,0.00023973,2]
[366822251,1750475440620,-504.0207603,0.00023973,2]
[366822253,1750475440629,-502.96479692,0.00023973,2]
[366822255,1750475440639,-500.0,0.00023973,2]
[366822257,1750475440649,-205.31944239,0.00023973,2]
[366822259,1750475440659,-500.0,0.00023973,2]
[366822261,1750475440668,-500.0,0.00023973,2]
[366822263,1750475440678,-152.21991938,0.00023973,2]
[366822265,1750475440689,-279.56378349,0.00023973,2]
[366822267,1750475440699,-500.0,0.00023973,2]
[366822269,1750475440710,-260.66294866,0.00023973,2]
[366822271,1750475440719,-263.47700735,0.00023973,2]
[366822273,1750475440729,-264.08682166,0.00023973,2]
[366822275,1750475440739,-500.57650978,0.00023973,2]
[366822277,1750475440749,-500.0,0.00023973,2]
[366822278,1750475440758,-500.0,0.00023973,2]
[366822280,1750475440769,-501.0720701,0.00023973,2]
[366822283,1750475440780,-500.46439135,0.00023973,2]
[366822285,1750475440790,-500.0,0.00023973,2]
[366822287,1750475440800,-500.92350632,0.00023973,2]
[366822289,1750475440810,-501.0321702,0.00023973,2]
[366822291,1750475440819,-500.47506104,0.00023973,2]
[366822293,1750475440829,-500.0,0.00023973,2]
[366822295,1750475440840,-501.0075154,0.00023973,2]
[366822297,1750475440850,-500.0,0.00023973,2]
[366822299,1750475440860,-500.0,0.00023973,2]
[366822301,1750475440869,-500.0,0.00023973,2]
[366822303,1750475440879,-501.04249116,0.00023973,2]
[366822305,1750475440888,-500.0,0.00023973,2]
[366822306,1750475440898,-501.0464664,0.00023973,2]
[366822309,1750475440908,-500.0,0.00023973,2]
[366822311,1750475440918,-160.82142123,0.00023973,2]
[366822313,1750475440928,-540.9558834,0.00023973,2]
[366822315,1750475440938,-506.32255219,0.00023973,2]
[366822317,1750475440948,-427.06538794,0.00023973,2]
[366822319,1750475440963,-500.43656433,0.00023973,2]
[366822321,1750475440973,-600.0,0.00023973,2]
[366822323,1750475440983,-500.0,0.00023973,2]
[366822325,1750475440992,-500.47298741,0.00023973,2]
[366822327,1750475441003,-501.0168641,0.00023973,2]
[366822329,1750475441013,-500.0,0.00023973,2]
[366822331,1750475441023,-153.08200427,0.00023973,2]
[366822333,1750475441033,-500.0,0.00023973,2]
[366822335,1750475441043,-500.48147573,0.00023973,2]
[366822337,1750475441052,-500.99231854,0.00023973,2]
[366822339,1750475441062,-500.50406835,0.00023973,2]
[366822341,1750475441072,-500.0,0.00023973,2]
[366822343,1750475441082,-500.0,0.00023973,2]
[366822345,1750475441092,-500.0,0.00023973,2]
[366822347,1750475441102,-500.0,0.00023973,2]
[366822349,1750475441111,-500.0,0.00023973,2]
[366822351,1750475441121,-501.40809659,0.00023973,2]
[366822353,1750475441130,-500.63881092,0.00023973,2]
[366822355,1750475441140,-500.0,0.00023973,2]
[366822357,1750475441150,-500.0,0.00023973,2]
[366822359,1750475441160,-501.00085733,0.00023973,2]
[366822361,1750475441169,-518.09711297,0.00023973,2]
[366822363,1750475441179,-1564.474367,0.0002398,2]
[366822365,1750475441188,-200.9927285,0.00023999,2]
[366822367,1750475441199,-467296.14837701,0.00024,2]
[366822369,1750475441209,-4371.81678395,0.00024,30]
[366822376,1750475441267,-2388.76121357,0.00024,30]
[366822381,1750475441304,-597.61,0.00024,30]
[366822383,1750475441315,-500.0,0.00024,30]
[366822470,1750476369848,163.876811,0.00013699,2]
[366822546,1750476632292,-313.73916419,0.00021,7]
[366822547,1750476632305,-1586.26083581,0.00021,7]
[366822548,1750476632314,-393.34275935,0.0002183,2]
[366822549,1750476632324,-213.55395994,0.00021929,2]
[366822550,1750476632335,-836.41202323,0.00021987,2]
[366822551,1750476632344,-230.10342898,0.00021987,2]
[366822552,1750476632354,-160.0,0.00021987,2]
[366822553,1750476632364,-424.93363889,0.00021987,2]
[366822554,1750476632378,-207.4,0.00022196,2]
[366822555,1750476632388,-406.0,0.00022481,2]
[366822556,1750476632398,-300.0,0.00022799,2]
[366822557,1750476632407,-401.35,0.000228,2]
[366822558,1750476632418,-82.13238741,0.000228,2]
[366822559,1750476632430,-917.86761259,0.000228,2]
[366822560,1750476632439,-411.20238728,0.000228,5]
[366823083,1750476643059,-6247.4428667,0.000228,5]
[366823085,1750476643072,-3876.73660351,0.000228,5]
[366823087,1750476643084,-16532.48852777,0.000228,5]
[366823089,1750476643098,-17893.60113311,0.000228,5]
[366823092,1750476643109,-165.89434038,0.000228,2]
[366823094,1750476643119,-1217.10941768,0.000229,8]
[366823096,1750476643130,-234.00329895,0.0002295,2]
[366823098,1750476643140,-22564.1550286,0.00022951,2]
[366823100,1750476643153,-1668.97019674,0.00022951,2]
[366823103,1750476643168,-609.52765627,0.00022951,2]
[366823404,1750476646028,-21443.41935459,0.00022951,2]
[366823410,1750476646085,-368.65206835,0.00022951,2]
[366824495,1750477393828,163.876811,0.00013699,2]
[366824505,1750477742057,150.0,0.000189,2]
[366824543,1750477832199,-150.08638285,0.00022,2]
[366824545,1750477832210,-406.0,0.00022385,2]
[366824547,1750477832221,-207.4,0.00022733,2]
[366824549,1750477832231,-1143.48442356,0.00022746,2]
[366824551,1750477832251,-2533.47789449,0.00022746,2]
[366824553,1750477832262,-405.81,0.000228,2]
[366824555,1750477832271,-300.0,0.00022899,2]
[366824557,1750477832280,-300.0,0.00022899,2]
[366824559,1750477832290,-204.0,0.00022899,2]
[366824561,1750477832300,-156.8146003,0.000229,2]
[366824563,1750477832310,-164.3238365,0.000229,2]
[366824565,1750477832320,-593.3598707,0.000229,2]
[366824566,1750477832329,-184.1110067,0.000229,2]
[366824568,1750477832340,-154.7201342,0.000229,2]
[366824570,1750477832350,-1803.74210465,0.000229,2]
[366824582,1750477832465,-1770.73765633,0.000229,2]
[366824594,1750477838820,-3703.939051,0.000229,2]
[366824595,1750477838834,-5825.68326107,0.000229,2]
[366824596,1750477838925,-572233.41477545,0.000229,2]
[366824670,1750478611841,163.876811,0.00013699,2]
[366824671,1750478734827,-281.01849396,0.000195,2]
[366824678,1750478958172,-236.68998197,0.000195,2]
[366824679,1750478964220,1243.0,0.00024995,60]
[366824795,1750479187749,-250.0,0.00019296,2]
[366824805,1750479549951,4452.35739031,0.00024999,60]
[366824809,1750479605634,163.876811,0.00013699,2]
[366824812,1750479659376,666.0,0.00018729,2]
[366824813,1750479771166,283.9292528,0.00018725,2]
[366824836,1750480082604,-168.473678,0.00019178,2]
[366824851,1750480152126,-448.29152407,0.000195,2]
[366824852,1750480152149,-182.98456767,0.00019661,2]
[366824853,1750480152169,-182.98456766,0.00019663,2]
[366824854,1750480152193,-182.98456766,0.00019665,2]
[366824855,1750480152215,-182.98456766,0.00019666,2]
[366824856,1750480152236,-182.98456766,0.00019668,2]
[366824857,1750480152256,-239.43298,0.0001967,2]
[366824891,1750480232769,-303.45018357,0.00019668,2]
[366824892,1750480232779,-1079.54336626,0.0001967,2]
[366824893,1750480232789,-151.36690054,0.0001976,2]
[366824894,1750480232798,-336.04,0.00019761,3]
[366824895,1750480232812,-300.0,0.00019767,2]
[366824896,1750480232822,-300.0,0.00019767,2]
[366824897,1750480232833,-300.0,0.00019767,2]
[366824898,1750480232842,-1200.0,0.00019767,2]
[366824899,1750480232852,-40464.48928081,0.00019768,2]
[366824900,1750480232861,-68958.47831263,0.00019768,2]
[366824901,1750480232871,-291.7803649,0.00019769,2]
[366824902,1750480232881,-500.0,0.00019769,2]
[366824903,1750480232890,-500.0,0.00019769,2]
[366824904,1750480232900,-500.0,0.00019769,2]
[366824905,1750480232910,-651.15845154,0.00019769,2]
[366824907,1750480232920,-500.0,0.00019769,2]
[366824909,1750480232929,-500.0,0.00019769,2]
[366824911,1750480232939,-500.0,0.00019769,2]
[366824915,1750480232949,-500.0,0.00019769,2]
[366824918,1750480232959,-500.0,0.00019769,2]
[366824919,1750480232969,-500.0,0.00019769,2]
[366824921,1750480232978,-500.0,0.00019769,2]
[366824922,1750480232988,-500.0,0.00019769,2]
[366824925,1750480232997,-400.92520522,0.00019769,2]
[366824926,1750480233007,-500.0,0.00019769,2]
[366824927,1750480233016,-500.0,0.00019769,2]
[366824928,1750480233026,-500.0,0.00019769,2]
[366824929,1750480233036,-500.0,0.00019769,2]
[366824930,1750480233046,-227.38981739,0.00019769,2]
[366824931,1750480233056,-500.0,0.00019769,2]
[366824932,1750480233066,-500.0,0.00019769,2]
[366824933,1750480233076,-500.0,0.00019769,2]
[366824934,1750480233085,-362.6728453,0.00019769,2]
[366824935,1750480233096,-500.0,0.00019769,2]
[366824936,1750480233106,-500.0,0.00019769,2]
[366824937,1750480233116,-500.0,0.00019769,2]
[366824938,1750480233128,-490.51979421,0.00019769,2]
[366824939,1750480233137,-564.16331832,0.00019769,2]
[366824940,1750480233147,-500.0,0.00019769,2]
[366824941,1750480233157,-500.0,0.00019769,2]
[366824942,1750480233167,-398.90410924,0.00019769,2]
[366824943,1750480233177,-500.0,0.00019769,2]
[366824944,1750480233186,-512.16678841,0.00019769,2]
[366824945,1750480233197,-445.7607374,0.00019769,2]
[366824946,1750480233207,-500.0,0.00019769,2]
[366824947,1750480233217,-500.0,0.00019769,2]
[366824948,1750480233227,-500.0,0.00019769,2]
[366824949,1750480233236,-500.0,0.00019769,2]
[366824950,1750480233246,-500.0,0.00019769,2]
[366824951,1750480233256,-500.0,0.00019769,2]
[366824952,1750480233265,-500.0,0.00019769,2]
[366824953,1750480233276,-500.0,0.00019769,2]
[366824954,1750480233286,-500.0,0.00019769,2]
[366824955,1750480233296,-500.0,0.00019769,2]
[366824956,1750480233306,-500.0,0.00019769,2]
[366824957,1750480233315,-500.0,0.00019769,2]
[366824958,1750480233326,-500.0,0.00019769,2]
[366824959,1750480233335,-500.0,0.00019769,2]
[366824960,1750480233345,-500.0,0.00019769,2]